{"text_format":"1","workbook":"xlsx","n_sheets":3,"sheets":["Feuil1","Feuil2","Feuil3"],"not_rendered":{"charts":0,"images":0,"macros":0,"external_links":0,"defined_names":0,"comments":0,"pivot_tables":0},"unopened":[],"bounds":{"document_bytes":16777216,"sheet_cells":100000,"rows_first":2000,"rows_last":500,"rows_between":2000,"halvings":0,"cell_chars":16384,"cell_head_chars":4096},"cells_cut":0,"cells_raw":0,"read":"whole","date_system":"1900"}

{"sheet":"Feuil1","index":0,"n_rows":16,"n_cols":8,"rows_kept":16,"cut":false,"hidden":false,"merged":[]}
[]
[null,"tableau d'intervention",null,null,null,"Nombre d'ntervention pars mois"]
[]
[null,"Intervention","Année","Mois",null,null,2015,2016]
[null,"Intervention 1",2015,1,null,"Janvier",{"$f":"COUNTIFS($C:$C,G$4,$D:$D,ROW($A1))","v":2},{"$f":"COUNTIFS($C:$C,H$4,$D:$D,ROW($A1))","v":1}]
[null,"Intervention 2",2015,1,null,"Février",{"$f":"COUNTIFS($C:$C,G$4,$D:$D,ROW($A2))","v":0},1]
[null,"Intervention 3",2016,2,null,"Mars",{"$f":"COUNTIFS($C:$C,G$4,$D:$D,ROW($A3))","v":1},0]
[null,"Intervention 4",2015,5,null,"Avril",{"$f":"COUNTIFS($C:$C,G$4,$D:$D,ROW($A4))","v":0},0]
[null,"Intervention 5",2016,1,null,"Mai",{"$f":"COUNTIFS($C:$C,G$4,$D:$D,ROW($A5))","v":1},0]
[null,"Intervention 6",2015,3,null,"Juin",{"$f":"COUNTIFS($C:$C,G$4,$D:$D,ROW($A6))","v":0},0]
[null,null,null,null,null,"Juillet",{"$f":"COUNTIFS($C:$C,G$4,$D:$D,ROW($A7))","v":0},0]
[null,null,null,null,null,"Août",{"$f":"COUNTIFS($C:$C,G$4,$D:$D,ROW($A8))","v":0},0]
[null,null,null,null,null,"Septembre",{"$f":"COUNTIFS($C:$C,G$4,$D:$D,ROW($A9))","v":0},0]
[null,null,null,null,null,"Octobre",{"$f":"COUNTIFS($C:$C,G$4,$D:$D,ROW($A10))","v":0},0]
[null,null,null,null,null,"Novembre",{"$f":"COUNTIFS($C:$C,G$4,$D:$D,ROW($A11))","v":0},0]
[null,null,null,null,null,"Décembre",{"$f":"COUNTIFS($C:$C,G$4,$D:$D,ROW($A12))","v":0},0]

{"sheet":"Feuil2","index":1,"n_rows":0,"n_cols":0,"rows_kept":0,"cut":false,"hidden":false,"merged":[]}

{"sheet":"Feuil3","index":2,"n_rows":0,"n_cols":0,"rows_kept":0,"cut":false,"hidden":false,"merged":[]}